Cogmind - Beta 16 @@@ ROGUE MODE // 2025.11.10 @ 01:48:51 Player: souux Result: Destroyed by Y-45 Defender with Heavy Assault Rifle Performance ------------- Evolutions (0) 0 Regions Visited (2) 400 Robots Destroyed (49) 245 Value Destroyed (771) 771 Prototype IDs (2) 40 Alien Tech Used (0) 0 Bonus (0) 0 TOTAL SCORE: 1456 Bonus ------- None Cogmind --------- Core Integrity 0/250 Matter 231/300 Energy 200/200 System Corruption 0% Temperature Cool (9) Movement Treading (160) Location -10/Subcaves Parts ------- > --- POWER (1) -------- Subdweller Power Source > --- PROPULSION (2) --- Light Treads Light Treads > --- UTILITY (2) ------ Medium Storage Unit Structural Scanner > --- WEAPON (2) ------- Subdweller Machine Gun Battle Cannon > --- INVENTORY (10) --- Ion Engine Light Treads Spiked Treads Subdweller Monowheel Subdweller Optics Scrap Shield Hacking Suite Ripper Peak State ------------ > --- POWER ------------ Subdweller Power Source > --- PROPULSION ------- Light Treads Light Treads > --- UTILITY ---------- Medium Storage Unit > --- WEAPON ----------- Subdweller Machine Gun Battle Cannon > --- INVENTORY -------- Ion Engine Light Treads Spiked Treads Subdweller Monowheel Structural Scanner Subdweller Optics Scrap Shield Hacking Suite Ripper [Rating: 11] Favorites ----------- Power Ion Engine Engine Ion Engine Propulsion Light Treads Treads Light Treads Leg Improved Aluminum Leg Wheel Wheel Utility Medium Storage Unit Device Seismic Detector Storage Medium Storage Unit Weapon EM Pulse Gun Energy Gun EM Pulse Gun Energy Cannon Beam Cannon Ballistic Gun Subdweller Machine Gun Ballistic Cannon Battle Cannon Launcher Grenade Launcher Build | -11 -10 -10 ------- Run | Yrd Mat Sub Slots Evolved . | . . . Power . | . . . Propulsion . | . . . Utility . | . . . Weapon . | . . . Parts Attached 31 | 7 13 11 Power 5 | 1 2 2 Engine 5 | 1 2 2 Core . | . . . Reactor . | . . . Propulsion 9 | 2 4 3 Treads 5 | . 2 3 Leg 2 | . 2 . Wheel 2 | 2 . . Hover . | . . . Flight . | . . . Utility 4 | 2 1 1 Device 2 | 1 . 1 Storage 2 | 1 1 . Processor . | . . . Hackware . | . . . Protection . | . . . Artifact . | . . . Weapon 13 | 2 6 5 Energy Gun 8 | 2 4 2 Energy Cannon 1 | . 1 . Ballistic Gun 2 | . . 2 Ballistic Cannon 1 | . . 1 Launcher 1 | . 1 . Special Weapon . | . . . Impact Weapon . | . . . Slashing Weapon . | . . . Piercing Weapon . | . . . Special Melee Weapon . | . . . Unidentified Prototypes . | . . . Parts Lost 5 | . . 5 Power . | . . . Propulsion . | . . . Utility 1 | . . 1 Weapon 4 | . . 4 Highest Loss Streak 3 | . . 3 To Critical Strikes . | . . . Average Backups 8 | 4 8 8 Power . | . 1 1 Propulsion 4 | 3 4 3 Utility 2 | . 1 3 Weapon 1 | . 1 . Tool/Special . | . . . Unused Backups 13 | . 6 7 Power 1 | . 1 . Propulsion 7 | . 4 3 Utility 4 | . 1 3 Weapon 1 | . . 1 Tool/Special . | . . . Average Slot Usage (%) 93 | . 100 87 Engine 14 | . 14 14 Treads 18 | . 8 28 Leg 8 | . 16 . Wheel 1 | . 2 . Device 8 | . 14 2 Storage 14 | . 14 14 Energy Gun 14 | . 24 5 Energy Cannon 1 | . 3 . Ballistic Gun 5 | . . 10 Ballistic Cannon 6 | . . 11 Peak Build Rating 11 | 7 10 11 Average Rating 9 | 5 9 9 On Entrance 5 | . 7 8 Avg Prop Armor Cover (%) 7 | . 7 . Naked Turns . | . . . Heaviest Build 23 | 15 20 23 Greatest Support 40 | 20 40 40 Greatest Overweight (x) 1 | . 1 . Average Overweight (x) . | . . . Largest Inventory Capacity 10 | 8 10 10 Average Capacity 9 | 7 8 10 Most Carried 10 | 6 10 10 Average Carried 8 | 4 8 9 Final Capacity 10 | 8 10 10 Final Carried 10 | 6 10 9 Class Distribution -------------------- 92% | Mutant 7% | Scavenger-Mutant Dominant Class ---------------- Mutant | -10/Materials Mutant | -10/Subcaves Resources | -11 -10 -10 ----------- Run | Yrd Mat Sub Matter Collected 991 | 270 510 211 Remotely . | . . . Salvage Created 1238 | 235 576 427 Parts 83 | 9 50 24 Haulers Intercepted 2 | . 2 . Recyclers Shooed . | . . . Parts Field Recycled . | . . . Retrieved Matter . | . . . Parts Self-Destructed 10 | . . 10 Prevented 3 | . . 3 Parts Restored . | . . . Kills | -11 -10 -10 ------- Run | Yrd Mat Sub Combat Hostiles Destroyed 27 | . 14 13 Guns 10 | . 4 6 Cannons 3 | . . 3 AOE 13 | . 10 3 Classes Destroyed 11 | 3 6 2 Worker 5 | 1 4 . Builder 1 | . 1 . Tunneler 5 | 5 . . Hauler 2 | . 2 . Recycler 3 | 1 2 . Operator 1 | . 1 . Turret 2 | . . 2 Watcher 3 | . 3 . Swarmer 17 | . 11 6 Grunt 5 | . 3 2 Subdweller 5 | . . 5 Best Kill Streak 6 | 3 6 4 Combat Bots Only 4 | . 3 4 Max Kills in Single Turn 4 | 1 4 2 Gunslinging . | . . . Exploded 3 | . 3 2 Melee . | . . . Uniques/NPCs Destroyed . | . . . Combat | -11 -10 -10 -------- Run | Yrd Mat Sub Hostile Shots Fired 190 | . 35 155 Missed 90 | . 10 80 Hits 100 | . 25 75 Projectile 100 | . 25 75 Critical Strikes 2 | . 1 1 Damage Taken 1056 | . 316 740 Core 258 | . 71 187 Absorbed by Shields . | . . . Core Remaining (%) 100 | 100 . . Volleys Fired 128 | 13 52 63 Largest 2 | 2 2 2 Hottest 100 | 80 100 80 Shots Fired 220 | 26 90 104 Gun 180 | 26 70 84 Cannon 25 | . 6 19 Launcher 15 | . 14 1 Special . | . . . Kinetic 39 | . . 39 Thermal 12 | . 12 . Explosive 15 | . 14 1 Electromagnetic 154 | 26 64 64 Robot Hit Streak 11 | 5 8 11 Robot Miss Streak 4 | 1 4 3 Penetration Max . | . . . Secondary Targets . | . . . Shots Hit Robots 117 | 18 43 56 Core Hits 61 | 7 34 20 Critical Kills 1 | . . 1 Critical Parts Destroyed . | . . . Critical Strikes 5 | 1 . 4 Destroy 1 | . . 1 Blast 2 | . . 2 Corrupt 2 | 1 . 1 Melee Attacks . | . . . Impact . | . . . Slashing . | . . . Piercing . | . . . Sneak Attacks . | . . . Combat Hostiles . | . . . Follow-up Attacks . | . . . Damage Inflicted 2524 | 277 1366 881 Guns 1389 | 240 568 581 Cannons 225 | . 52 173 Explosions 898 | 37 734 127 Melee . | . . . Ramming 12 | . 12 . Kinetic 319 | . . 319 Thermal 210 | 37 131 42 Explosive 781 | . 696 85 Electromagnetic 1202 | 240 527 435 Impact . | . . . Slashing . | . . . Piercing . | . . . Highest Corruption . | . . . Average Corruption . | . . . Corruption Purged . | . . . Corruption Blocked . | . . . Overload Shots . | . . . Overflow Damage 12 | . 7 5 Projectiles . | . . . Explosions 12 | . 7 5 Melee . | . . . Knockbacks 1 | . . 1 Impact . | . . . Kinetic 1 | . . 1 Secondary . | . . . Self-Inflicted Damage 140 | . 105 35 Shots 4 | . 3 1 Rammed 2 | . 2 . Targets Rammed 3 | . 3 . Kicked 1 | . 1 . Crushed . | . . . Highest Temperature 164 | 164 117 4 Average Temperature 45 | 68 39 4 Received Heat Transfer 297 | . 36 261 Siege Activations . | . . . Martial Activations . | . . . Shielding Activations . | . . . Robots Disrupted . | . . . Combat Hostiles . | . . . Robots Corrupted 2 | . . 2 Combat Hostiles 1 | . . 1 Parts Fried 2 | 2 . . Impact Corruptions . | . . . Robots Melted . | . . . Combat Hostiles . | . . . Parts Melted 1 | . 1 . Heat Transferred 361 | 50 261 50 Parts Sabotaged . | . . . Parts Stolen . | . . . Parts Stripped . | . . . Power Chain Reactions 3 | 1 1 1 Alert | -11 -10 -10 ------- Run | Yrd Mat Sub Maximum Alert Level 1 | . 1 . Low Security (%) 76 | 100 74 . Level 1 23 | . 25 . Level 2 . | . . . Level 3 . | . . . Level 4 . | . . . Level 5 . | . . . High Security . | . . . Max Security . | . . . Peak Influence 337 | 10 337 . Initial . | . . . Average 92 | 1 99 . Influence Increases 1632 | 35 572 1025 Destroy 0b10 Robot/C 480 | . 280 200 Destroy 0b10 Robot/NC 100 | 35 65 . Destroy Leader 60 | . 60 . Successful Hack 26 | . 26 . Disable Machine 60 | . 60 . Destroy Structure 66 | . 66 . Lose Combat Pursuer 840 | . 15 825 Influence Decreases 1225 | 35 565 625 Entered New Map 4 | . . 4 Time Decay 1021 | 35 415 571 Lost Part 50 | . . 50 Purge Threat 150 | . 150 . Squads Dispatched 2 | . 2 . Investigation 1 | . 1 . Extermination . | . . . Reinforcement 1 | . 1 . Assault . | . . . Garrison . | . . . Intercept . | . . . Searches Triggered . | . . . Construction Impeded . | . . . Haulers Reinforced . | . . . Active Scanning Responses . | . . . Cargo Convoy Interrupts . | . . . Stealth | -11 -10 -10 --------- Run | Yrd Mat Sub Distress Signals 1 | . 1 . Communications Jammed . | . . . Distress Signals . | . . . Times Spotted 71 | . 21 50 Peak Tracking Total 4 | . 3 4 Tactical Retreats 7 | . 1 6 Traps | -11 -10 -10 ------- Run | Yrd Mat Sub Traps Triggered 3 | . 3 . Indirectly 1 | . 1 . Trap Hack Attempts . | . . . Triggered . | . . . Disarmed . | . . . Reprogrammed . | . . . Reused . | . . . Traps Extracted . | . . . Installed . | . . . Triggered . | . . . Machines | -11 -10 -10 ---------- Run | Yrd Mat Sub Machines Disabled 6 | . 4 2 Max in Single Turn 1 | . 1 1 Machines Repaired . | . . . Machines Dismantled . | . . . Machines Sabotaged . | . . . Overloaded Fab Kills . | . . . Hacking | -11 -10 -10 --------- Run | Yrd Mat Sub Machines Accessed 8 | . 6 2 Terminals 6 | . 6 . Fabricators . | . . . Repair Stations . | . . . Recycling Units . | . . . Scanalyzers . | . . . Garrison Access . | . . . Total Hacks 32 | . 27 5 Successful 21 | . 16 5 Failed 11 | . 11 . Catastrophic . | . . . Database Lockouts . | . . . Manual 24 | . 24 . Terminals 27 | . 27 . Fabricators . | . . . Repair Stations . | . . . Recycling Units . | . . . Scanalyzers . | . . . Garrison Access . | . . . Terminal Hacks 11 | . 6 5 Record 4 | . . 4 Robot Analysis 2 | . 2 . Prototype ID Bank 1 | . 1 . Open Door 1 | . . 1 Terminal Index 1 | . 1 . Unreport Threat 1 | . 1 . Locate Traps 1 | . 1 . Fabricator Hacks . | . . . Repair Station Hacks . | . . . Recycling Unit Hacks . | . . . Scanalyzer . | . . . Garrison Access Hacks . | . . . Unauthorized Hacks 10 | . 10 . Terminals 10 | . 10 . Botnet 5 | . 5 . Skim 5 | . 5 . Fabricators . | . . . Repair Stations . | . . . Recycling Units . | . . . Scanalyzers . | . . . Garrison Access . | . . . Data Cores Recovered . | . . . Used . | . . . Hacking Detections 6 | . 6 . Full Trace Events . | . . . Feedback Events . | . . . Feedback Blocked . | . . . Robot Schematics Acquired . | . . . Robots Built . | . . . Authchips . | . . . Time . | . . . Total Robot Build Rating . | . . . Part Schematics Acquired . | . . . Parts Built . | . . . Authchips . | . . . Time . | . . . Total Part Build Rating . | . . . Part Studies Acquired . | . . . Parts Repaired . | . . . Time . | . . . Parts Recycled . | . . . Recycled Matter . | . . . Retrieved Matter . | . . . Retrieved Components . | . . . Parts Scanalyzed . | . . . Part Schematics Acquired . | . . . Parts Damaged . | . . . Bothacking | -11 -10 -10 ------------ Run | Yrd Mat Sub Used RIF Installer . | . . . Robots Hacked . | . . . Non-combat . | . . . Combat . | . . . Robot Hacks Applied . | . . . Relay Couplers Released . | . . . Fabnet Peak Effective % . | . . . Robots Rewired . | . . . Allies Hacked . | . . . Hacks Repelled . | . . . Allies | -11 -10 -10 -------- Run | Yrd Mat Sub Total Allies . | . . . Largest Group . | . . . Highest-Rated Group . | . . . Highest-Rated Ally . | . . . Total Orders . | . . . Ally Attacks . | . . . Total Damage . | . . . Kills . | . . . Allies Corrupted . | . . . Allies Melted . | . . . Intel | -11 -10 -10 ------- Run | Yrd Mat Sub Active Infowar (turns) 1965 | 49 1614 302 Structural 273 | . . 273 Seismic 1692 | 49 1614 29 Robot Analysis Total 2 | . 2 . Derelict Logs Recovered 1 | . . 1 Drone Launches . | . . . Drone Recoveries . | . . . Exploration | -11 -10 -10 ------------- Run | Yrd Mat Sub Turns Passed 3486 | 137 1614 1735 Spaces Moved 2075 | 100 1040 935 Core 2 | 2 . . Treads 1222 | . 287 935 Legs 643 | . 643 . Wheels 208 | 98 110 . Hover . | . . . Flight . | . . . Fastest Speed 50 | 50 80 160 Average Speed 142 | 79 133 160 Slowest Speed 190 | 80 190 160 Overloaded Moves . | . . . Propulsion Burnouts . | . . . Robots Hopped . | . . . Potential Cave-ins . | . . . Cave-ins Triggered . | . . . Exploration Rate (%) 54 | 4 100 58 Regions Visited 2 Branch Regions 1 Pre-discovered Areas 1 | . 1 . Known Exits Taken 1 | . 1 . Unknown Exits Taken 1 | 1 . . Scrap Searched 6 | . . 6 Spaces Dug 7 | . 7 . Terrain Destroyed 70 | 3 62 5 Melee . | . . . Projectile . | . . . AOE 70 | 3 62 5 Terrain Rammed . | . . . Walls Destroyed . | . . . Machines Disabled . | . . . Actions | -11 -10 -10 --------- Run | Yrd Mat Sub Total 2372 | 127 1174 1071 Wait 73 | 2 26 45 Move 2073 | 99 1039 935 Hop . | . . . Pick Up 25 | 6 13 6 Fast Attach 16 | 7 7 2 Attach 4 | . . 4 Detach . | . . . Swap 25 | . 16 9 Drop 25 | . 18 7 Fire 128 | 13 52 63 Melee . | . . . Ram . | . . . Kick 1 | . 1 . Crush 2 | . 2 . Escape Stasis . | . . . Rewire . | . . . Trap . | . . . Miscellaneous . | . . . Route ------- -11/Scrapyard -10/Materials (discovered 5 exits: *Mat x3 / [*Min] / *Sub) -10/Subcaves (discovered 1 exit: *Rec) History --------- Turn | Location | Event 25 | -11/Scrapyard | Discovered new exit (range 15) 138 | -11/Scrapyard | Entered Materials 246 | -10/Materials | Discovered new exit (range 16) 305 | -10/Materials | Build established: Mutant 687 | -10/Materials | Discovered new exit (range 7) 901 | -10/Materials | Discovered new exit (range 11) 1176 | -10/Materials | Discovered new exit (range 16) 1193 | -10/Materials | Discovered new exit (range 7) 1204 | -10/Materials | Learned location of Recycling (-9) 1294 | -10/Materials | Identified exit to Materials 1294 | -10/Materials | Identified exit to Subcaves 1325 | -10/Materials | Loaded intel: 2 recycling unit locations 1375 | -10/Materials | Learned location of 2 exits from Mines 1417 | -10/Materials | Learned 4 Subcaves zone layouts 1752 | -10/Materials | Entered Subcaves 1753 | -10/Subcaves | Approached by a straggling Scientist 1753 | -10/Subcaves | Identified exit to Recycling 1798 | -10/Subcaves | Core integrity fell below 50% 1862 | -10/Subcaves | Lost 3 parts (1u2w) 1894 | -10/Subcaves | Learned Materials garrison access intel 2555 | -10/Subcaves | Shifting Twisted Machinery released Scrap Shield 2616 | -10/Subcaves | Shifting Twisted Machinery released Spk. Treads 2628 | -10/Subcaves | Disturbed a concealed Subdweller 2637 | -10/Subcaves | Core integrity fell below 20% 3174 | -10/Subcaves | Visited Clippyterm 3179 | -10/Subcaves | Learned Factory fabricator intel 3179 | -10/Subcaves | Learned Factory stockpile data 3288 | -10/Subcaves | A swath of the cavern ceiling suddenly collapsed 3487 | -10/Subcaves | Destroyed by Y-45 Defender with Heavy Assault Rifle Last Messages --------------- reappropriating Complex 0b10 components, would you like help? Data stored: Factory stockpile data. >>Record "Hexidium" It looks like you're searching for the Unchained HQ. I could tell you where it is but then I'd have to kill you. 03179_ Connecting with Clippyterm... 03288_ Mak. Hammer crushed. A swath of the cavern ceiling suddenly collapses. 03397_ XP-2KY(R) Disposable Heat Sink blasted off. 03397_ XP-2KY(R) destroyed. 03400_ Acquired 32 matter. 03402_ Acquired 3 matter. 03467_ Destroyed Heat Sink. 03467_ G-34 Mercenary destroyed. 03471_ G-34 Mercenary knocked back. 03474_ G-34 Mercenary destroyed. Map ----- +----------------------------------------------------+ | ?????????????????????????????????????????????? | | ?????????????????????????????????????????????? | | ?????????????????????????????????????????????? | | ?????????????????????????????????????????????? | | ?????????????????????????????????????????????? | | ?????????????????????????????????????????????? | | ?????????????????????????????????????????????? | | ??????????????????????????????#######????????? | | ????????????????????????????################?? | | ???????????????????????????##### ##########? | | ??????????????????????????#### #### #### | | ??????????????????????????### ##### ### | | ?????????????????????????### ##### ## | | ?????????????????????????### ### # | | ?????????????????????????## ### # | | ????????????????????????### ###!& ## | | ??????????????????????##### #####!## ### | | ?????????????????????##### # ### [ # ### | | ????????????????????#### ##"##### | | ???????????????????#### "##"""#### | | ?????????????????##### ## #####"""""## | | ??????????????####### #######"####"### | | ??????????????##### ###" #?###"#"""# | | ??????????????## % & ###"????##"""" # | | ??????????????## % ! ##???###""#""" | | ??????????????## %Y @ ###???#####"""# | | ??????????????###% ### #"#"#??## " #### | | ??????????????## ##### ##"#"??"##"###"# | | ??????????????### ###### ###"##??##"#""#"" | | ??????????????### ???### ######??##"##"""" | | ???????????????## ????## ###?###??####""#"# | | ??????????????## ????? # ###??????###"##"## | | ??????????????## ????? ##????????#####""" | | ??????????????## ??????? ##???????#####"# | | ??????????????# ??????# ####??????????### | | ??????????????? ???????#######??????????## | | ?????????????? ???????#####????????????### | | ?????????????? ????????????????????????### | | ????????????? ?????????????????????????## | | ??????????????? ??????????????????????????## # | | ??????????????????????????????????????????#### | | ??????????????????????????????????????????#### | | ???????????????????????????????????????####### | | ???????????????????????????????????????####### | | ???????????????????????????????????????## | | ???????????????????????????????????????## | | ???????????????????????????????????????### | | ?????????????????????????????????????###### | | ?????????????????????????????????????###### | | ?????????????????????????????????????## | +----------------------------------------------------+ Best States ------------- Heat Dissipation 25 Energy Generation 10 Energy Capacity 250 Matter Stores 300 Matter Capacity 300 Sight Range 16 Terrain Scan Density 10 Evasion (%) 55 Recoil Reduction 2 Item Schematics ----------------- None Robot Schematics ------------------ None Fabricated ------------ Nothing Repaired ---------- Nothing Studied --------- None Alien Tech Used ----------------- None Achievements -------------- None Challenges ------------ None Game ------ Seed ChainMappingNanosword Manual? 0 Play Time 00:24:44 Cumulative 86.2 hours Start 2025.11.10 @ 01:24:20 End 2025.11.10 @ 01:48:51 Sessions 1 Manual Loads 0 Difficulty Rogue Special Mode None Game No. 77 Rogue 77 Adventurer 0 Explorer 0 Win Type - Total 1 Types 1/0/0/0/0/0/0/0/0/0 Lore% 35 Gallery% 41 Achievement% 32 Wizard Run 0 Options --------- Layout 2 ASCII 0 Keyboard 0 Movement Mouse Keybinds 0 Fullscreen 2 Font 24/Terminus Map View 50x44 Zoom Use 0% Tactical HUD 1 Map Filters NONE Filters NONE Steam 1 RUN: c1001954-3502-4065-b14a-8c6882450321